[Event "Early-Titled-Tuesday-Blitz-May-07-2024"]
[Site "Chess.com"]
[Date "2024.05.07"]
[Round "8"]
[White "nihalsarin"]
[Black "KuzubovYuriy"]
[Result "1-0"]
[WhiteElo "3146"]
[BlackElo "2963"]
[TimeControl "180+1"]
[EndTime "9:37:40 PDT"]
[Termination "nihalsarin won by resignation"]

1. d4 {[%clk 0:03:00.9]} 1... Nf6 {[%clk 0:02:59.9]} 2. Bg5 {[%clk 0:02:54.6]}
2... d5 {[%clk 0:02:55.5]} 3. Nd2 {[%clk 0:02:54.2]} 3... e6 {[%clk 0:02:54.8]}
4. e3 {[%clk 0:02:50.4]} 4... Nbd7 {[%clk 0:02:49.4]} 5. Bd3 {[%clk 0:02:48]}
5... c5 {[%clk 0:02:46.4]} 6. c3 {[%clk 0:02:48.3]} 6... h6 {[%clk 0:02:46.3]}
7. Bh4 {[%clk 0:02:48.2]} 7... Qb6 {[%clk 0:02:46.1]} 8. Rb1 {[%clk 0:02:45.3]}
8... Be7 {[%clk 0:02:41.8]} 9. f4 {[%clk 0:02:43.6]} 9... cxd4 {[%clk
0:02:27.9]} 10. exd4 {[%clk 0:02:42.1]} 10... Qc7 {[%clk 0:02:17.4]} 11. Qf3
{[%clk 0:02:38.5]} 11... b6 {[%clk 0:02:06.2]} 12. Bg3 {[%clk 0:02:33.9]} 12...
Bd6 {[%clk 0:01:56]} 13. Ne2 {[%clk 0:02:19.5]} 13... Bb7 {[%clk 0:01:54.4]} 14.
O-O {[%clk 0:02:16.4]} 14... Bc6 {[%clk 0:01:44.3]} 15. h3 {[%clk 0:01:51.4]}
15... O-O {[%clk 0:01:35.7]} 16. Qe3 {[%clk 0:01:51.9]} 16... Rfe8 {[%clk
0:01:07.8]} 17. Bh4 {[%clk 0:01:45.5]} 17... Qb7 {[%clk 0:01:02.5]} 18. Ng3
{[%clk 0:01:39]} 18... b5 {[%clk 0:01:00.5]} 19. Rbe1 {[%clk 0:01:35.9]} 19...
b4 {[%clk 0:00:59.4]} 20. Nf3 {[%clk 0:01:36.6]} 20... Ne4 {[%clk 0:00:37.6]}
21. Nxe4 {[%clk 0:01:30.8]} 21... dxe4 {[%clk 0:00:37.4]} 22. Bxe4 {[%clk
0:01:31.7]} 22... Bxe4 {[%clk 0:00:37]} 23. Qxe4 {[%clk 0:01:32.6]} 23... Qxe4
{[%clk 0:00:36.9]} 24. Rxe4 {[%clk 0:01:33.5]} 24... bxc3 {[%clk 0:00:36.3]} 25.
bxc3 {[%clk 0:01:34.4]} 25... Rec8 {[%clk 0:00:32.6]} 26. Rc1 {[%clk 0:01:09.7]}
26... Rab8 {[%clk 0:00:30.8]} 27. Rc2 {[%clk 0:00:31.9]} 27... Rb1+ {[%clk
0:00:29.4]} 28. Be1 {[%clk 0:00:30.4]} 28... Nf6 {[%clk 0:00:28.5]} 29. Ree2
{[%clk 0:00:31.1]} 29... Bxf4 {[%clk 0:00:27.9]} 30. Kf2 {[%clk 0:00:28.7]}
30... Nd5 {[%clk 0:00:15]} 31. c4 {[%clk 0:00:25.7]} 31... Nb6 {[%clk
0:00:15.3]} 32. Bd2 {[%clk 0:00:22.3]} 32... Bxd2 {[%clk 0:00:13.6]} 33. Nxd2
{[%clk 0:00:23.2]} 33... Ra1 {[%clk 0:00:12.3]} 34. c5 {[%clk 0:00:13.6]} 34...
Nd5 {[%clk 0:00:12.6]} 35. Ne4 {[%clk 0:00:14.2]} 35... Nf4 {[%clk 0:00:12.2]}
36. Red2 {[%clk 0:00:14.1]} 36... Rc6 {[%clk 0:00:12.4]} 37. Nd6 {[%clk
0:00:11.8]} 37... g5 {[%clk 0:00:12.3]} 38. Nc4 {[%clk 0:00:10.5]} 38... Ra6
{[%clk 0:00:11]} 39. Ne3 {[%clk 0:00:08.4]} 39... Rc6 {[%clk 0:00:10.6]} 40. g3
{[%clk 0:00:09]} 40... Nxh3+ {[%clk 0:00:09.1]} 41. Kg2 {[%clk 0:00:09.3]} 41...
g4 {[%clk 0:00:09]} 42. Nxg4 {[%clk 0:00:09.4]} 42... Ng5 {[%clk 0:00:09.7]} 43.
Nxh6+ {[%clk 0:00:06.5]} 43... Kg7 {[%clk 0:00:09.8]} 44. Ng4 {[%clk 0:00:07.3]}
44... Ne4 {[%clk 0:00:10.2]} 45. Re2 {[%clk 0:00:07.6]} 45... Nf6 {[%clk
0:00:10.7]} 46. Ne5 {[%clk 0:00:06.8]} 46... Rc7 {[%clk 0:00:11.4]} 47. Rf2
{[%clk 0:00:06.1]} 47... Nd5 {[%clk 0:00:11.5]} 48. Rf3 {[%clk 0:00:06.8]} 48...
Nb4 {[%clk 0:00:10.4]} 49. Rcf2 {[%clk 0:00:07]} 49... f5 {[%clk 0:00:10]} 50.
g4 {[%clk 0:00:07.5]} 50... Nc6 {[%clk 0:00:08.4]} 51. Nxc6 {[%clk 0:00:07.2]}
51... Rxc6 {[%clk 0:00:08.9]} 52. gxf5 {[%clk 0:00:08]} 52... exf5 {[%clk
0:00:08.9]} 53. Rxf5 {[%clk 0:00:08.7]} 53... Rd1 {[%clk 0:00:09.3]} 54. Rg5+
{[%clk 0:00:08.1]} 54... Rg6 {[%clk 0:00:07.4]} 55. Rxg6+ {[%clk 0:00:08.2]}
55... Kxg6 {[%clk 0:00:08.3]} 56. Rf4 {[%clk 0:00:09]} 56... Kg5 {[%clk
0:00:08.9]} 57. Re4 {[%clk 0:00:08.1]} 57... Kf5 {[%clk 0:00:09.3]} 58. Re5+
{[%clk 0:00:07]} 58... Kf4 {[%clk 0:00:10]} 59. Rd5 {[%clk 0:00:05.5]} 59...
Rd2+ {[%clk 0:00:10.5]} 60. Kf1 {[%clk 0:00:05.2]} 60... Kf3 {[%clk 0:00:10.7]}
61. Ke1 {[%clk 0:00:05]} 61... Rxa2 {[%clk 0:00:11.4]} 62. c6 {[%clk 0:00:05.2]}
62... Ke3 {[%clk 0:00:11.6]} 63. Kd1 {[%clk 0:00:04]} 63... Kd3 {[%clk
0:00:11.3]} 64. Kc1 {[%clk 0:00:04.1]} 64... Rc2+ {[%clk 0:00:09.9]} 65. Kb1
{[%clk 0:00:04.1]} 65... Rc4 {[%clk 0:00:09.8]} 66. Rc5 {[%clk 0:00:03.8]} 66...
Rb4+ {[%clk 0:00:09.7]} 67. Ka2 {[%clk 0:00:04.1]} 67... Rb8 {[%clk 0:00:09.7]}
68. c7 {[%clk 0:00:04.6]} 68... Rc8 {[%clk 0:00:09.8]} 69. d5 {[%clk 0:00:05.3]}
69... Kd4 {[%clk 0:00:10.5]} 70. d6 {[%clk 0:00:06.1]} 70... Kxc5 {[%clk
0:00:10.7]} 71. d7 {[%clk 0:00:06.8]} 71... Rxc7 {[%clk 0:00:11.5]} 72. d8=Q
{[%clk 0:00:07.6]} 72... Kb6 {[%clk 0:00:12.1]} 73. Qb8+ {[%clk 0:00:07.9]}
73... Rb7 {[%clk 0:00:12.4]} 74. Qd6+ {[%clk 0:00:08.3]} 74... Ka5 {[%clk
0:00:12.7]} 75. Ka3 {[%clk 0:00:08.2]} 75... Rb6 {[%clk 0:00:12.6]} 76. Qd3
{[%clk 0:00:07.3]} 76... Rc6 {[%clk 0:00:12.7]} 77. Qd5+ {[%clk 0:00:07.2]}
77... Kb6 {[%clk 0:00:13]} 78. Kb4 {[%clk 0:00:07.9]} 78... Kb7 {[%clk
0:00:12.8]} 79. Kb5 {[%clk 0:00:07.5]} 79... a6+ {[%clk 0:00:13.3]} 80. Ka5
{[%clk 0:00:08.2]} 80... Kc7 {[%clk 0:00:13.8]} 81. Qf7+ {[%clk 0:00:08.7]}
81... Kb8 {[%clk 0:00:14]} 82. Qe8+ {[%clk 0:00:08.6]} 82... Kb7 {[%clk
0:00:14.1]} 83. Qd7+ {[%clk 0:00:09.3]} 83... Rc7 {[%clk 0:00:14.8]} 84. Qd5+
{[%clk 0:00:09.3]} 84... Rc6 {[%clk 0:00:15.5]} 85. Qd7+ {[%clk 0:00:09.3]}
85... Rc7 {[%clk 0:00:15.6]} 86. Qe6 {[%clk 0:00:09.5]} 86... Rc5+ {[%clk
0:00:15]} 87. Kb4 {[%clk 0:00:10]} 87... Rb5+ {[%clk 0:00:15.4]} 88. Kc4 {[%clk
0:00:09.5]} 88... Ka7 {[%clk 0:00:15.7]} 89. Qd7+ {[%clk 0:00:10.3]} 89... Ka8
{[%clk 0:00:16]} 90. Qc8+ {[%clk 0:00:10.2]} 90... Ka7 {[%clk 0:00:16.4]} 91.
Kd4 {[%clk 0:00:10.8]} 91... Rb4+ {[%clk 0:00:15.7]} 92. Kc5 {[%clk 0:00:10.9]}
92... Rb5+ {[%clk 0:00:15.8]} 93. Kd6 {[%clk 0:00:11.6]} 93... Rb6+ {[%clk
0:00:16]} 94. Kc7 {[%clk 0:00:12.2]} 94... Rb5 {[%clk 0:00:16.6]} 95. Qf8 {[%clk
0:00:12]} 95... Rb7+ {[%clk 0:00:16.4]} 96. Kc6 {[%clk 0:00:12.8]} 96... Rb6+
{[%clk 0:00:17]} 97. Kc5 {[%clk 0:00:13.6]} 97... Rb5+ {[%clk 0:00:17.6]} 98.
Kc4 {[%clk 0:00:13.3]} 98... Kb7 {[%clk 0:00:18.1]} 99. Qf2 {[%clk 0:00:12.7]}
99... Ka8 {[%clk 0:00:18.2]} 100. Qf7 {[%clk 0:00:12.6]} 100... Kb8 {[%clk
0:00:18.2]} 101. Qd7 {[%clk 0:00:12.7]} 101... Ka8 {[%clk 0:00:18.3]} 102. Qc7
{[%clk 0:00:13.3]} 102... Rb7 {[%clk 0:00:17.3]} 103. Qd8+ {[%clk 0:00:10.3]}
103... Ka7 {[%clk 0:00:17.7]} 104. Kc5 {[%clk 0:00:11.2]} 104... Rb8 {[%clk
0:00:14.2]} 105. Qd4 {[%clk 0:00:10.6]} 105... Rb5+ {[%clk 0:00:13.2]} 106. Kc6+
{[%clk 0:00:10.8]} 106... Ka8 {[%clk 0:00:13.9]} 107. Qf4 {[%clk 0:00:09.5]}
107... Ka7 {[%clk 0:00:13.3]} 108. Kc7 {[%clk 0:00:10.2]} 108... Rb7+ {[%clk
0:00:13.5]} 109. Kc8 {[%clk 0:00:10.9]} 109... Rb5 {[%clk 0:00:13.8]} 110. Qd4+
{[%clk 0:00:08.9]} 110... Ka8 {[%clk 0:00:13.7]} 111. Qe3 {[%clk 0:00:07.9]}
111... Rb2 {[%clk 0:00:09.9]} 112. Qe4+ {[%clk 0:00:04.3]} 112... Ka7 {[%clk
0:00:08.6]} 113. Qd4+ {[%clk 0:00:05]} 113... Rb6 {[%clk 0:00:08.8]} 114. Kc7
{[%clk 0:00:05.2]} 114... Ka8 {[%clk 0:00:09.7]} 115. Qxb6 {[%clk 0:00:06.1]}
1-0

[Event "Early-Titled-Tuesday-Blitz-May-07-2024"]
[Site "Chess.com"]
[Date "2024.05.07"]
[Round "8"]
[White "Silvederione"]
[Black "ansko1999"]
[Result "1/2-1/2"]
[WhiteElo "2509"]
[BlackElo "2640"]
[TimeControl "180+1"]
[EndTime "9:37:49 PDT"]
[Termination "Game drawn by repetition"]

1. d4 {[%clk 0:03:00.9]} 1... d5 {[%clk 0:02:58.1]} 2. Nc3 {[%clk 0:03:01.1]}
2... Nf6 {[%clk 0:02:52.7]} 3. Bf4 {[%clk 0:03:00.9]} 3... c5 {[%clk 0:02:52.4]}
4. e3 {[%clk 0:03:01.3]} 4... cxd4 {[%clk 0:02:50.4]} 5. exd4 {[%clk 0:03:02.2]}
5... a6 {[%clk 0:02:50]} 6. Nf3 {[%clk 0:03:02.8]} 6... Nc6 {[%clk 0:02:46.3]}
7. Ne5 {[%clk 0:03:03]} 7... Bd7 {[%clk 0:02:44.4]} 8. Be2 {[%clk 0:02:58.8]}
8... e6 {[%clk 0:02:43.2]} 9. Qd2 {[%clk 0:02:56.6]} 9... Be7 {[%clk 0:02:34.2]}
10. h3 {[%clk 0:02:55.2]} 10... Nxe5 {[%clk 0:02:28.6]} 11. Bxe5 {[%clk
0:02:53.3]} 11... Rc8 {[%clk 0:02:26.9]} 12. O-O {[%clk 0:02:51.4]} 12... O-O
{[%clk 0:02:26.2]} 13. Rfe1 {[%clk 0:02:50.7]} 13... Bb4 {[%clk 0:02:11.9]} 14.
Bd3 {[%clk 0:02:48.7]} 14... Bb5 {[%clk 0:02:01.3]} 15. Bxf6 {[%clk 0:02:07]}
15... Qxf6 {[%clk 0:01:58.8]} 16. Bxb5 {[%clk 0:02:04.5]} 16... axb5 {[%clk
0:01:49.7]} 17. Re3 {[%clk 0:02:04]} 17... Rc4 {[%clk 0:01:45]} 18. Rd3 {[%clk
0:01:33.8]} 18... Rfc8 {[%clk 0:01:43]} 19. a3 {[%clk 0:01:31.3]} 19... Bxc3
{[%clk 0:01:36.1]} 20. Rxc3 {[%clk 0:01:28.9]} 20... Rxc3 {[%clk 0:01:32.8]} 21.
bxc3 {[%clk 0:01:29.8]} 21... Qe7 {[%clk 0:01:30.4]} 22. a4 {[%clk 0:01:00.3]}
22... bxa4 {[%clk 0:01:24.3]} 23. Rxa4 {[%clk 0:00:59.5]} 23... h6 {[%clk
0:01:22.6]} 24. Rb4 {[%clk 0:00:57.3]} 24... Qc7 {[%clk 0:01:21.6]} 25. Rb3
{[%clk 0:00:57]} 25... Qc6 {[%clk 0:01:21.5]} 26. Qd3 {[%clk 0:00:56.8]} 26...
Ra8 {[%clk 0:01:19.7]} 27. g3 {[%clk 0:00:55.7]} 27... Ra1+ {[%clk 0:01:19]} 28.
Kg2 {[%clk 0:00:56.2]} 28... Ra2 {[%clk 0:01:09.7]} 29. Rb4 {[%clk 0:00:52]}
29... Qa6 {[%clk 0:01:01.9]} 30. Rb3 {[%clk 0:00:38]} 30... Qxd3 {[%clk
0:00:49.9]} 31. cxd3 {[%clk 0:00:37.8]} 31... Rc2 {[%clk 0:00:45.4]} 32. Kf3
{[%clk 0:00:34.8]} 32... g5 {[%clk 0:00:42.8]} 33. Ke3 {[%clk 0:00:34.8]} 33...
Kg7 {[%clk 0:00:42.6]} 34. Ra3 {[%clk 0:00:33.4]} 34... h5 {[%clk 0:00:41.1]}
35. Rb3 {[%clk 0:00:33.2]} 35... Kg6 {[%clk 0:00:40.1]} 36. Ra3 {[%clk 0:00:33]}
36... f5 {[%clk 0:00:33.8]} 37. Rb3 {[%clk 0:00:32.7]} 37... h4 {[%clk
0:00:30.7]} 38. gxh4 {[%clk 0:00:31.8]} 38... gxh4 {[%clk 0:00:31.6]} 39. Rxb7
{[%clk 0:00:26.4]} 39... Rxc3 {[%clk 0:00:31]} 40. Re7 {[%clk 0:00:27]} 40...
Kf6 {[%clk 0:00:28.2]} 41. Rh7 {[%clk 0:00:27.1]} 41... f4+ {[%clk 0:00:16.4]}
42. Kd2 {[%clk 0:00:26.9]} 42... Ra3 {[%clk 0:00:16.7]} 43. Rxh4 {[%clk
0:00:26.7]} 43... Ra2+ {[%clk 0:00:17.2]} 44. Ke1 {[%clk 0:00:26.6]} 44... Kf5
{[%clk 0:00:15]} 45. Rh5+ {[%clk 0:00:26.6]} 45... Kf6 {[%clk 0:00:14.7]} 46.
Rh4 {[%clk 0:00:23.5]} 46... Kf5 {[%clk 0:00:14.8]} 47. Kf1 {[%clk 0:00:18]}
47... f3 {[%clk 0:00:13.7]} 48. Rh5+ {[%clk 0:00:15.9]} 48... Kf4 {[%clk
0:00:13.2]} 49. Rh4+ {[%clk 0:00:15.7]} 49... Kf5 {[%clk 0:00:13.2]} 50. Kg1
{[%clk 0:00:14.7]} 50... Rd2 {[%clk 0:00:12.6]} 51. Rh5+ {[%clk 0:00:15]} 51...
Kf4 {[%clk 0:00:12.6]} 52. Rh4+ {[%clk 0:00:15.6]} 52... Kf5 {[%clk 0:00:12.8]}
53. Rh5+ {[%clk 0:00:16]} 53... Kf6 {[%clk 0:00:09.8]} 54. Rh6+ {[%clk
0:00:15.5]} 54... Ke7 {[%clk 0:00:09.3]} 55. Kh2 {[%clk 0:00:14.6]} 55... Rxd3
{[%clk 0:00:09.7]} 56. Rh4 {[%clk 0:00:15]} 56... Kf6 {[%clk 0:00:09.5]} 57. Kg3
{[%clk 0:00:15.4]} 57... Kf5 {[%clk 0:00:09.1]} 58. Rf4+ {[%clk 0:00:15.2]}
58... Kg5 {[%clk 0:00:09.4]} 59. h4+ {[%clk 0:00:15.3]} 59... Kh5 {[%clk
0:00:10]} 60. Rg4 {[%clk 0:00:14.8]} 60... Kh6 {[%clk 0:00:07.4]} 61. Rf4 {[%clk
0:00:14.7]} 61... Kh5 {[%clk 0:00:07.6]} 62. Rg4 {[%clk 0:00:12.9]} 62... Rd2
{[%clk 0:00:05]} 63. Rg5+ {[%clk 0:00:12.1]} 63... Kh6 {[%clk 0:00:05.2]} 64.
Re5 {[%clk 0:00:12.8]} 64... Rxd4 {[%clk 0:00:05.1]} 65. Rxe6+ {[%clk 0:00:13]}
65... Kh5 {[%clk 0:00:05.8]} 66. Re5+ {[%clk 0:00:13.3]} 66... Kg6 {[%clk
0:00:05.9]} 67. Rg5+ {[%clk 0:00:13.2]} 67... Kh6 {[%clk 0:00:06.4]} 68. Rf5
{[%clk 0:00:13.3]} 68... Rd1 {[%clk 0:00:04.1]} 69. Rxf3 {[%clk 0:00:12.4]}
69... d4 {[%clk 0:00:04.4]} 70. Rf6+ {[%clk 0:00:12]} 70... Kh5 {[%clk
0:00:04.7]} 71. Rf5+ {[%clk 0:00:12.7]} 71... Kh6 {[%clk 0:00:05.3]} 72. Rd5
{[%clk 0:00:13.3]} 72... d3 {[%clk 0:00:05.5]} 73. Kf3 {[%clk 0:00:13.8]} 73...
Rh1 {[%clk 0:00:05.2]} 74. Rxd3 {[%clk 0:00:12.8]} 74... Rxh4 {[%clk 0:00:04.7]}
75. Rd5 {[%clk 0:00:12.7]} 75... Kg7 {[%clk 0:00:04.8]} 76. Rg5+ {[%clk
0:00:12.4]} 76... Kf6 {[%clk 0:00:04.9]} 77. Rb5 {[%clk 0:00:11]} 77... Rh3+
{[%clk 0:00:04.9]} 78. Kg4 {[%clk 0:00:11.1]} 78... Ra3 {[%clk 0:00:05.4]} 79.
Rb6+ {[%clk 0:00:10.3]} 79... Kf7 {[%clk 0:00:05.7]} 80. f4 {[%clk 0:00:10.2]}
80... Ra5 {[%clk 0:00:06]} 81. Rc6 {[%clk 0:00:08.5]} 81... Rb5 {[%clk
0:00:06.3]} 82. Rc3 {[%clk 0:00:07.8]} 82... Ra5 {[%clk 0:00:06.5]} 83. Re3
{[%clk 0:00:07.9]} 83... Rb5 {[%clk 0:00:06.6]} 84. Ra3 {[%clk 0:00:08.1]} 84...
Rc5 {[%clk 0:00:06.9]} 85. Ra6 {[%clk 0:00:08.4]} 85... Rb5 {[%clk 0:00:07.2]}
86. Rc6 {[%clk 0:00:07.9]} 86... Rd5 {[%clk 0:00:07.4]} 87. Rc7+ {[%clk
0:00:08]} 87... Kf6 {[%clk 0:00:07.4]} 88. Rc8 {[%clk 0:00:07.7]} 88... Rb5
{[%clk 0:00:07.5]} 89. Ra8 {[%clk 0:00:07.4]} 89... Rc5 {[%clk 0:00:07.8]} 90.
Ra6+ {[%clk 0:00:07.5]} 90... Kf7 {[%clk 0:00:07.9]} 91. Rh6 {[%clk 0:00:06.3]}
91... Rb5 {[%clk 0:00:08.4]} 92. Rd6 {[%clk 0:00:06.8]} 92... Ra5 {[%clk
0:00:08.5]} 93. Rb6 {[%clk 0:00:07.3]} 93... Rc5 {[%clk 0:00:08.7]} 94. Rb7+
{[%clk 0:00:07.3]} 94... Kf6 {[%clk 0:00:08.1]} 95. Rb6+ {[%clk 0:00:07.8]}
95... Kf7 {[%clk 0:00:08.2]} 96. f5 {[%clk 0:00:08.4]} 96... Rc1 {[%clk
0:00:08.2]} 97. Rb7+ {[%clk 0:00:08.2]} 97... Kf6 {[%clk 0:00:08.1]} 98. Rb6+
{[%clk 0:00:08.9]} 98... Kf7 {[%clk 0:00:08.5]} 99. Kf4 {[%clk 0:00:08.5]} 99...
Rf1+ {[%clk 0:00:08.6]} 100. Ke4 {[%clk 0:00:09.1]} 100... Re1+ {[%clk
0:00:09.2]} 101. Kd4 {[%clk 0:00:09.4]} 101... Rd1+ {[%clk 0:00:08.5]} 102. Ke5
{[%clk 0:00:09.7]} 102... Re1+ {[%clk 0:00:09]} 103. Kf4 {[%clk 0:00:10]} 103...
Rf1+ {[%clk 0:00:09.3]} 104. Kg4 {[%clk 0:00:10.7]} 104... Rg1+ {[%clk
0:00:09.7]} 105. Kf3 {[%clk 0:00:11.3]} 105... Rf1+ {[%clk 0:00:09.9]} 106. Ke4
{[%clk 0:00:11.5]} 106... Re1+ {[%clk 0:00:10.2]} 107. Kd3 {[%clk 0:00:12]}
107... Rf1 {[%clk 0:00:10.4]} 108. Ke4 {[%clk 0:00:10.5]} 1/2-1/2